fUSD/lending_fUSD_20240708
["ID","MTS","AMOUNT","RATE_DAILY","PERIOD"]
[331539531,1720468243694,-768.44720034,0.00014,2]
[331539532,1720468243705,-62465.14371386,0.00014,2]
[331539533,1720468243716,-69745.0000015,0.00014,2]
[331539534,1720468243727,-2383.28505014,0.00014,2]
[331539535,1720468243738,-8081.28438641,0.00014,2]
[331539536,1720468243749,-351.062724,0.00014,2]
[331539537,1720468243760,-255.23676644,0.00014,2]
[331539538,1720468243771,-748.63230573,0.00014,2]
[331539539,1720468243782,-2314.14804842,0.00014,2]
[331539540,1720468243801,-341.65759013,0.00014,2]
[331539541,1720468243812,-3446.62747122,0.00014,2]
[331539542,1720468243823,-931.13278959,0.00014,2]
[331539543,1720468243834,-286.93626806,0.00014,2]
[331539544,1720468243845,-3767.59533793,0.00014,2]
[331539552,1720468245671,-2353.21410219,0.00014,2]
[331539553,1720468245683,-1000.54103258,0.00014,2]
[331539554,1720468245694,-11053.76194839,0.00014,2]
[331539555,1720468245705,-430.09096335,0.00014,2]
[331539556,1720468245716,-3885.10398628,0.00014,2]
[331539557,1720468245728,-585.79333653,0.00014,2]
[331539558,1720468245739,-1568.3092,0.00014,2]
[331539559,1720468245751,-4281.62023915,0.00014,2]
[331539560,1720468245829,-1707.0,0.00014,2]
[331539561,1720468245840,-3185.6985258,0.00014,2]
[331539562,1720468245852,-3855.0044704,0.00014,2]
[331539563,1720468245863,-12571.36622906,0.00014,2]
[331539564,1720468245874,-743.62877208,0.00014,2]
[331539565,1720468245885,-15461.51814751,0.00014,2]
[331539566,1720468245897,-4349.09017876,0.00014,2]
[331539567,1720468245908,-430.18684934,0.00014,2]
[331539568,1720468245919,-1015.91279629,0.00014,2]
[331539569,1720468245933,-5143.26,0.00014,2]
[331539570,1720468245945,-34254.35334225,0.00014,2]
[331539571,1720468245954,-89531.34860024,0.00014,2]
[331539572,1720468245966,-132188.0,0.00014,2]
[331539573,1720468245978,-596.79156854,0.00014,2]
[331539574,1720468245988,-2439.94300744,0.00014,2]
[331539575,1720468245999,-956.17199593,0.00014,2]
[331539576,1720468246011,-27799.89231496,0.00014,2]
[331539577,1720468246024,-753.61,0.00014,2]
[331539578,1720468246034,-506.28464956,0.00014,2]
[331539579,1720468246045,-30861.97877135,0.00014,2]
[331539580,1720468246061,-346.76974357,0.00014,2]
[331539581,1720468246074,-1472.58845792,0.00014,2]
[331539582,1720468246085,-3222.38164255,0.00014,2]
[331539583,1720468246096,-553.56974129,0.00014,2]
[331539584,1720468246108,-472.83287023,0.00014,2]
[331539585,1720468246119,-458.27649239,0.00014,2]
[331539586,1720468246130,-57440.000016,0.00014,2]
[331539587,1720468246141,-3693.93006249,0.00014,2]
[331539588,1720468246155,-471.01190175,0.00014,2]
[331539589,1720468246309,-3172.45,0.00014,2]
[331539590,1720468246321,-11823.59982305,0.00014,2]
[331539591,1720468246332,-1671.17631581,0.00014,2]
[331539592,1720468246344,-1740.74654837,0.00014,2]
[331539593,1720468246355,-7858.78588056,0.00014,2]
[331539594,1720468246367,-104446.64236568,0.00014,2]
[331539595,1720468246380,-22709.48189385,0.00014,2]
[331539596,1720468508870,2227.04332616,0.00011199,2]
[331539597,1720468667231,209.54468271,0.00011199,2]
[331539598,1720468675158,305.72325685,0.00011199,2]
[331539599,1720468679430,367.54941555,0.00011199,2]
[331539603,1720468983413,1071.37125319,0.00011199,2]
[331539604,1720468997451,301.19314596,0.00011199,2]
[331539605,1720469015145,218.16420677,0.00011199,2]
[331539606,1720469142351,366.11090361,0.00011199,2]
[331539607,1720469142863,206.33892405,0.00011199,2]
[331539608,1720469143200,305.72325685,0.00011199,2]
[331539609,1720469143252,1706.01053776,0.00011199,2]
[331539610,1720469155559,1287.33023709,0.00011199,2]
[331539611,1720469160327,483.68385979,0.00011199,2]
[331539612,1720469185597,386.68404747,0.00011199,2]
[331539614,1720469212408,5388.63012999,0.00011199,2]
[331539615,1720469231486,430.96511855,0.00011199,2]
[331539616,1720469235718,1216.48344249,0.00011199,2]
[331539621,1720469286549,235.38273328,0.00011199,2]
[331539622,1720469294662,647.71813835,0.00011199,2]
[331539625,1720469304548,3086.11017581,0.00011199,2]
[331539626,1720469309285,844.6469,0.00011199,2]
[331539627,1720469317271,524.36809456,0.00011199,2]
[331539630,1720469341027,19631.30329052,0.00011199,2]
[331539632,1720469374467,789.12290955,0.00011199,2]
[331539634,1720469383125,520.96253011,0.00011199,2]
[331539637,1720469416442,714.61419842,0.00011199,2]
[331539638,1720469421599,717.89169523,0.00011199,2]
[331539641,1720469430006,7000.0,0.00011199,2]
[331539695,1720469434440,-342.18,0.00011333,2]
[331539696,1720469434454,-258.88603077,0.00012273,2]
[331539697,1720469434466,-330.0,0.00012301,2]
[331539698,1720469434478,-878.73925346,0.00012302,2]
[331539699,1720469434492,-878.73925346,0.00012302,2]
[331539700,1720469434505,-155.42897268,0.00012302,2]
[331539701,1720469434519,-269.73227948,0.00012302,2]
[331539702,1720469434534,-1253.15958212,0.00012302,2]
[331539703,1720469434547,-613.01736691,0.00012302,2]
[331539704,1720469434561,-173.88799368,0.00012314,2]
[331539705,1720469434574,-556.72469797,0.00012314,2]
[331539706,1720469434587,-292.54926927,0.00012314,2]
[331539707,1720469434601,-364.58623105,0.00012314,2]
[331539708,1720469434617,-186.51762411,0.00012314,2]
[331539709,1720469434630,-242.5499319,0.00012314,2]
[331539710,1720469434645,-155.17578184,0.00012314,2]
[331539711,1720469434658,-206.14985369,0.00012314,2]
[331539712,1720469434672,-251.49373791,0.00012314,2]
[331539713,1720469434684,-200.0,0.00012836,2]
[331539714,1720469434698,-1162.9,0.00012903,2]
[331539715,1720469434710,-250.0,0.00012907,2]
[331539716,1720469434723,-3491.10182243,0.00013128,2]
[331539717,1720469434736,-259.91784709,0.00013128,2]
[331539718,1720469434749,-955.85753929,0.00013128,2]
[331539719,1720469434761,-305.72325685,0.00013128,2]
[331539720,1720469434774,-294.11862641,0.00013128,2]
[331539721,1720469434786,-250.0,0.00013238,2]
[331539722,1720469434800,-192.54653565,0.00013472,2]
[331539723,1720469434813,-4847.54696968,0.00013472,2]
[331539724,1720469434827,-255.63531546,0.00013543,2]
[331539725,1720469434840,-473.99379803,0.00013543,2]
[331539726,1720469434852,-156.97654085,0.00013543,2]
[331539727,1720469434865,-210.28152083,0.00013543,2]
[331539728,1720469434878,-155.0,0.00013574,2]
[331539729,1720469434891,-159.9452446,0.00013574,2]
[331539730,1720469434904,-496.10852137,0.00013574,2]
[331539731,1720469434916,-17510.49350711,0.00013574,2]
[331539732,1720469434930,-155.0,0.00013574,2]
[331539733,1720469434943,-276.82006101,0.00013574,2]
[331539734,1720469434957,-202.34507322,0.00013574,2]
[331539735,1720469434972,-788.75483213,0.00013574,2]
[331539736,1720469434984,-342.18,0.00013597,2]
[331539737,1720469434997,-250.0,0.00013699,2]
[331539738,1720469435011,-2353.82438689,0.00013759,2]
[331539739,1720469435024,-1055.71054162,0.00013759,2]
[331539740,1720469435037,-2172.6584325,0.000138,2]
[331539741,1720469435050,-167.12,0.00013835,2]
[331539742,1720469435062,-2450.57586,0.0001386,2]
[331539743,1720469435074,-500.0,0.00013888,2]
[331539744,1720469435087,-3000.0,0.00013888,2]
[331539745,1720469435100,-475.71197158,0.00013889,2]
[331539746,1720469435112,-212.54,0.0001389,3]
[331539747,1720469435124,-177.11,0.0001389,3]
[331539748,1720469435136,-531.38,0.0001389,3]
[331539749,1720469435149,-100000.0,0.000139,2]
[331539750,1720469435161,-168.52598414,0.000139,2]
[331539751,1720469435173,-1630.59899193,0.000139,2]
[331539752,1720469435186,-219.4,0.00013903,2]
[331539753,1720469435198,-334.75251365,0.00013989,2]
[331539754,1720469435211,-2624.24139058,0.0001399,2]
[331539755,1720469435224,-327.52608475,0.00013999,2]
[331539756,1720469435237,-671966.49557211,0.00014,2]
[331539757,1720469435254,-641.17151827,0.00014,2]
[331539759,1720469435269,-2548.04149811,0.00014,2]
[331539760,1720469436616,-1192.8949193,0.00014,2]
[331539761,1720469436664,-931082.27644134,0.00014,2]
[331539762,1720469436689,-2000.0,0.00014,2]
[331539763,1720469436706,-200.0,0.00014,2]
[331539764,1720469436716,-1000.0,0.00014014,2]
[331539765,1720469436725,-11856.5443606,0.00014029,2]
[331539766,1720469436734,-113345.3008604,0.00014029,2]
[331539767,1720469436743,-7725.5033535,0.00014029,2]
[331539768,1720469436752,-3555.1710258,0.00014039,2]
[331539769,1720469436763,-438.05939194,0.00014099,2]
[331539770,1720469436772,-2000.0,0.0001414,2]
[331539771,1720469436781,-200.0,0.0001414,2]
[331539772,1720469436790,-1441.6,0.00014482,2]
[331539773,1720469436799,-356.0,0.000146,2]
[331539774,1720469436809,-1000.0,0.000146,2]
[331539775,1720469436818,-225.0,0.000146,2]
[331539776,1720469436828,-3971.3553682,0.00015,2]
[331539777,1720469436837,-623.37993751,0.00015,2]
[331539778,1720469436846,-327.50694654,0.00015,2]
[331539779,1720469436855,-491.0,0.00015,2]
[331539780,1720469436864,-1000.0,0.00015,2]
[331539781,1720469436873,-218.8,0.00015068,2]
[331539782,1720469436882,-165.43,0.00015161,2]
[331539783,1720469436891,-636.09868956,0.00015165,2]
[331539784,1720469436901,-366.37752863,0.00015166,2]
[331539785,1720469436910,-354.22,0.0001526,3]
[331539786,1720469436920,-200.0,0.00015426,2]
[331539787,1720469436929,-190.71,0.0001552,2]
[331539788,1720469436938,-4229.37,0.000156,2]
[331539789,1720469436947,-219.4,0.00015641,2]
[331539790,1720469436956,-1000.0,0.00015766,2]
[331539791,1720469436966,-600.0,0.00015797,2]
[331539792,1720469436975,-167.0,0.00015831,2]
[331539793,1720469436984,-167.0,0.00015831,2]
[331539794,1720469436994,-342.18,0.00015861,2]
[331539795,1720469437004,-2450.57587,0.0001636,2]
[331539796,1720469437015,-167.0,0.00016484,2]
[331539797,1720469437023,-1760.75916821,0.00016566,2]
[331539798,1720469437033,-15875.6739735,0.00016969,2]
[331539799,1720469437042,-15875.6739735,0.00016969,2]
[331539800,1720469437051,-1000.0,0.00017,2]
[331539801,1720469437061,-190.71,0.00017072,2]
[331539802,1720469437070,-167.0,0.00017137,2]
[331539803,1720469437079,-219.4,0.00017378,2]
[331539804,1720469437088,-1630.59899186,0.00017471,2]
[331539805,1720469437098,-1000.0,0.00017517,2]
[331539806,1720469437107,-186.97945268,0.000177,3]
[331539807,1720469437117,-2348.46149697,0.000177,2]
[331539808,1720469437126,-9449.67,0.00017728,2]
[331539809,1720469437135,-3430.07,0.00017728,2]
[331539810,1720469437144,-2172.65843249,0.00017735,2]
[331539811,1720469437153,-38263.0,0.00017754,2]
[331539812,1720469437163,-5180.0,0.00017754,2]
[331539813,1720469437172,-291.0,0.00017754,2]
[331539814,1720469437181,-1665.0,0.00017754,2]
[331539815,1720469437191,-5814.0,0.00017754,2]
[331539816,1720469437200,-1199.0,0.00017754,2]
[331539817,1720469437209,-167.0,0.00017791,2]
[331539818,1720469437218,-151.0,0.000178,2]
[331539819,1720469437227,-259394.9090872,0.000178,3]
[331539820,1720469437240,-140743.2972148,0.000178,3]
[331539821,1720469437250,-151.0,0.000178,2]
[331539822,1720469437260,-151.0,0.000178,2]
[331539823,1720469437269,-198.096338,0.000178,2]
[331539824,1720469437279,-198.096338,0.000178,2]
[331539825,1720469437287,-151.0,0.000178,2]
[331539826,1720469437296,-938.43613,0.000178,2]
[331539827,1720469437305,-151.0,0.000178,2]
[331539828,1720469437315,-151.0,0.000178,2]
[331539829,1720469437323,-938.43613,0.000178,2]
[331539830,1720469437332,-151.0,0.000178,2]
[331539831,1720469437341,-151.0,0.000178,2]
[331539832,1720469437350,-227.24934482,0.00017807,2]
[331539833,1720469437359,-151.0,0.000179,2]
[331539834,1720469437369,-151.0,0.000179,2]
[331539835,1720469437378,-151.0,0.000179,2]
[331539836,1720469437387,-343.263747,0.000179,2]
[331539837,1720469437396,-151.0,0.000179,2]
[331539838,1720469437406,-151.0,0.000179,2]
[331539839,1720469437415,-151.0,0.000179,2]
[331539840,1720469437424,-151.0,0.000179,2]
[331539841,1720469437433,-151.0,0.000179,2]
[331539842,1720469437442,-151.0,0.000179,2]
[331539843,1720469437453,-151.0,0.000179,2]
[331539844,1720469437462,-151.0,0.000179,2]
[331539845,1720469437472,-151.0,0.000179,2]
[331539846,1720469437481,-151.0,0.000179,2]
[331539847,1720469437490,-151.0,0.000179,2]
[331539848,1720469437499,-151.0,0.000179,2]
[331539849,1720469437509,-151.0,0.000179,2]
[331539850,1720469437517,-151.0,0.000179,2]
[331539851,1720469437527,-151.0,0.000179,2]
[331539852,1720469437540,-151.0,0.000179,2]
[331539854,1720469437548,-151.0,0.000179,2]
[331539856,1720469437557,-76182.62093477,0.000179,3]
[331539858,1720469437570,-3332.62267,0.000179,3]
[331539861,1720469437581,-493.5770007,0.000179,3]
[331539863,1720469437593,-264.82796935,0.000179,3]
[331539864,1720469437604,-302.0,0.000179,3]
[331539866,1720469437616,-294.08982411,0.000179,3]
[331539868,1720469437630,-283.87982098,0.000179,3]
[331539869,1720469437641,-795.57001,0.000179,3]
[331539871,1720469437652,-2464.57032252,0.000179,3]
[331539873,1720469437664,-1625.57304693,0.000179,3]
[331539874,1720469437675,-1203.63841064,0.000179,3]
[331539876,1720469437686,-1179.00859254,0.000179,3]
[331539878,1720469437697,-7977.80085835,0.000179,3]
[331539879,1720469437709,-700.0,0.000179,3]
[331539881,1720469437721,-465.65120639,0.000179,3]
[331539882,1720469437732,-8612.08363314,0.000179,3]
[331539883,1720469437744,-2790.34058908,0.000179,3]
[331539884,1720469437755,-19609.71284197,0.000179,3]
[331539885,1720469437768,-345413.06568553,0.000179,3]
[331539886,1720469437777,-938.43613,0.000179,2]
[331539887,1720469437787,-151.0,0.000179,2]
[331539888,1720469437797,-151.0,0.000179,2]
[331539889,1720469437806,-938.43613,0.000179,2]
[331539890,1720469437816,-151.0,0.000179,2]
[331539891,1720469437826,-281.09911487,0.00017999,2]
[331539892,1720469437835,-370.90972778,0.00018,2]
[331539893,1720469437844,-342.18,0.00018125,2]
[331539894,1720469437854,-165.43,0.00018193,2]
[331539895,1720469437863,-362.0,0.000182,2]
[331539896,1720469437873,-167.0,0.00018444,2]
[331539897,1720469437882,-11479.0,0.000186,2]
[331539898,1720469437892,-190.71,0.00018624,2]
[331539899,1720469437902,-11486.0,0.000188,3]
[331539900,1720469437912,-161.17,0.00018849,30]
[331539901,1720469437921,-353.3,0.00018857,2]
[331539902,1720469437931,-2450.57586,0.0001886,2]
[331539903,1720469437942,-150.0,0.00018888,2]
[331539904,1720469437952,-5000.0,0.00019,2]
[331539905,1720469437962,-1000.0,0.00019,3]
[331539906,1720469437972,-1000.0,0.00019,2]
[331539907,1720469437982,-300.0,0.00019,2]
[331539908,1720469437992,-253.69470968,0.00019069,2]
[331539909,1720469438002,-11486.0,0.000191,5]
[331539910,1720469438013,-219.4,0.00019116,2]
[331539911,1720469438023,-500.0,0.00019178,2]
[331539912,1720469438034,-500.0,0.00019178,2]
[331539913,1720469438044,-500.0,0.00019178,2]
[331539914,1720469438055,-500.0,0.00019178,2]
[331539915,1720469438065,-500.0,0.00019178,2]
[331539917,1720469438075,-500.0,0.00019178,2]
[331539918,1720469438086,-506.94,0.00019178,2]
[331539919,1720469438096,-500.01,0.00019178,2]
[331539920,1720469438106,-1000.0,0.0001925,4]
[331539921,1720469438116,-1000.0,0.00019269,2]
[331539922,1720469438126,-155.0,0.00019299,2]
[331539923,1720469438136,-369.18293041,0.0001935,2]
[331539924,1720469438147,-2500.0,0.000195,2]
[331539925,1720469438157,-1393.97791886,0.000199,2]
[331539926,1720469438166,-545.3132,0.0001994,2]
[331539927,1720469438177,-1000.0,0.00019964,2]
[331539928,1720469438187,-3175.11825841,0.0002,2]
[331539929,1720469438197,-1277.40403744,0.0002,2]
[331539930,1720469438206,-616.63744864,0.0002,2]
[331539931,1720469438216,-4329.31535842,0.0002,15]
[331539932,1720469438227,-5587.0040499,0.0002,7]
[331539933,1720469438236,-868.44671232,0.0002,2]
[331539934,1720469438246,-364445.65642727,0.0002,4]
[331539935,1720469438255,-188.35612588,0.0002,2]
[331539936,1720469438267,-258.0,0.0002,2]
[331539937,1720469438276,-1000.0,0.0002,3]
[331539938,1720469438285,-193.0,0.0002,2]
[331539939,1720469438295,-6284.03762925,0.0002,2]
[331539940,1720469438303,-151.0,0.0002,2]
[331539941,1720469438312,-150.0,0.0002,2]
[331539942,1720469438322,-151.0,0.0002,2]
[331539943,1720469438331,-1250.0,0.0002,2]
[331539944,1720469438340,-151.0,0.0002,2]
[331539945,1720469438349,-151.0,0.0002,2]
[331539946,1720469438358,-343.263747,0.0002,2]
[331539947,1720469438367,-151.0,0.0002,2]
[331539948,1720469438377,-151.0,0.0002,2]
[331539949,1720469438386,-151.0,0.0002,2]
[331539950,1720469438395,-151.0,0.0002,2]
[331539951,1720469438405,-151.0,0.0002,2]
[331539952,1720469438413,-151.0,0.0002,2]
[331539953,1720469438423,-151.0,0.0002,2]
[331539954,1720469438432,-151.0,0.0002,2]
[331539955,1720469438442,-156.306131,0.0002,2]
[331539956,1720469438453,-151.0,0.0002,2]
[331539957,1720469438463,-151.0,0.0002,2]
[331539958,1720469438473,-151.0,0.0002,2]
[331539959,1720469438482,-343.068699,0.0002,2]
[331539960,1720469438491,-343.068699,0.0002,2]
[331539961,1720469438501,-151.0,0.0002,2]
[331539962,1720469438512,-243.498413,0.0002,2]
[331539963,1720469438522,-243.498413,0.0002,2]
[331539964,1720469438533,-151.0,0.0002,2]
[331539965,1720469438543,-151.0,0.0002,2]
[331539966,1720469438552,-184.00221,0.0002,2]
[331539967,1720469438561,-151.0,0.0002,2]
[331539968,1720469438571,-151.0,0.0002,2]
[331539969,1720469438580,-297.644525,0.0002,2]
[331539970,1720469438589,-297.644525,0.0002,2]
[331539971,1720469438599,-151.0,0.0002,2]
[331539972,1720469438611,-312.51933776,0.0002,2]
[331539973,1720469438620,-312.51933776,0.0002,2]
[331539974,1720469438630,-312.51933776,0.0002,2]
[331539975,1720469438640,-312.51933776,0.0002,2]
[331539976,1720469438649,-312.51933776,0.0002,2]
[331539977,1720469438659,-312.51933776,0.0002,2]
[331539978,1720469438668,-312.51933776,0.0002,2]
[331539979,1720469438678,-312.51933776,0.0002,2]
[331539980,1720469438687,-312.51933776,0.0002,2]
[331539981,1720469438697,-312.51933776,0.0002,2]
[331539982,1720469438706,-312.51933776,0.0002,2]
[331539983,1720469438715,-312.51933776,0.0002,2]
[331539984,1720469438725,-524.979918,0.0002,2]
[331539985,1720469438735,-193.545091,0.0002,2]
[331539986,1720469438744,-151.0,0.0002,2]
[331539987,1720469438753,-193.545091,0.0002,2]
[331539988,1720469438764,-524.979918,0.0002,2]
[331539989,1720469438774,-151.0,0.0002,2]
[331539990,1720469438783,-223.22226,0.0002,2]
[331539991,1720469438792,-151.0,0.0002,2]
[331539992,1720469438802,-194.788856,0.0002,2]
[331539993,1720469438811,-151.0,0.0002,2]
[331539994,1720469438821,-313.546916,0.0002,2]
[331539995,1720469438830,-194.788856,0.0002,2]
[331539996,1720469438839,-313.546916,0.0002,2]
[331539997,1720469438849,-151.0,0.0002,2]
[331539998,1720469438858,-219.880703,0.0002,2]
[331539999,1720469438868,-151.0,0.0002,2]
[331540000,1720469438878,-151.0,0.0002,2]
[331540001,1720469438887,-151.0,0.0002,2]
[331540002,1720469438896,-198.096338,0.0002,2]
[331540003,1720469438906,-151.0,0.0002,2]
[331540004,1720469438916,-198.096338,0.0002,2]
[331540005,1720469438925,-221.613282,0.0002,2]
[331540006,1720469438935,-151.0,0.0002,2]
[331540007,1720469438944,-938.43613,0.0002,2]
[331540008,1720469438954,-151.0,0.0002,2]
[331540009,1720469438963,-151.0,0.0002,2]
[331540010,1720469438973,-938.43613,0.0002,2]
[331540011,1720469438983,-151.0,0.0002,2]
[331540012,1720469438993,-500.0,0.0002004,2]
[331540013,1720469439003,-500.0,0.0002004,2]
[331540014,1720469439013,-500.0,0.0002004,2]
[331540015,1720469439023,-500.0,0.0002004,2]
[331540016,1720469439033,-500.0,0.0002004,2]
[331540017,1720469439043,-500.0,0.0002004,2]
[331540018,1720469439053,-500.0,0.0002004,2]
[331540019,1720469439063,-500.0,0.0002004,2]
[331540020,1720469439073,-500.0,0.0002004,2]
[331540021,1720469439083,-500.0,0.0002004,2]
[331540022,1720469439093,-500.0,0.0002004,2]
[331540023,1720469439103,-500.0,0.0002004,2]
[331540024,1720469439113,-500.0,0.0002004,2]
[331540025,1720469439124,-500.0,0.0002004,2]
[331540026,1720469439135,-500.0,0.0002004,2]
[331540027,1720469439144,-500.0,0.0002004,2]
[331540028,1720469439155,-500.0,0.0002004,2]
[331540029,1720469439165,-500.0,0.0002004,2]
[331540030,1720469439175,-500.0,0.0002004,2]
[331540031,1720469439185,-500.0,0.0002004,2]
[331540032,1720469439196,-500.0,0.0002004,2]
[331540033,1720469439207,-500.0,0.0002004,2]
[331540034,1720469439217,-500.0,0.0002004,2]
[331540035,1720469439227,-500.0,0.0002004,2]
[331540036,1720469439238,-500.0,0.0002004,2]
[331540037,1720469439248,-500.0,0.0002004,2]
[331540038,1720469439259,-500.0,0.0002004,2]
[331540039,1720469439269,-500.0,0.0002004,2]
[331540040,1720469439278,-500.0,0.0002004,2]
[331540041,1720469439288,-500.0,0.0002004,2]
[331540042,1720469439299,-500.0,0.0002004,2]
[331540043,1720469439309,-500.0,0.0002004,2]
[331540044,1720469439322,-500.0,0.0002004,2]
[331540045,1720469439332,-500.0,0.0002004,2]
[331540046,1720469439342,-500.0,0.0002004,2]
[331540047,1720469439352,-500.0,0.0002004,2]
[331540048,1720469439362,-500.0,0.0002004,2]
[331540049,1720469439372,-500.0,0.0002004,2]
[331540050,1720469439382,-500.0,0.0002004,2]
[331540051,1720469439392,-500.0,0.0002004,2]
[331540052,1720469439402,-500.0,0.0002004,2]
[331540053,1720469439411,-500.0,0.0002004,2]
[331540054,1720469439421,-500.0,0.0002004,2]
[331540055,1720469439430,-500.0,0.0002004,2]
[331540056,1720469439440,-500.0,0.0002004,2]
[331540057,1720469439451,-500.0,0.0002004,2]
[331540058,1720469439460,-500.0,0.0002004,2]
[331540059,1720469439470,-500.0,0.0002004,2]
[331540060,1720469439480,-500.0,0.0002004,2]
[331540061,1720469439490,-500.0,0.0002004,2]
[331540062,1720469439500,-500.0,0.0002004,2]
[331540063,1720469439512,-500.0,0.0002004,2]
[331540064,1720469439522,-500.0,0.0002004,2]
[331540065,1720469439532,-500.0,0.0002004,2]
[331540067,1720469439551,-509.25,0.0002004,2]
[331540069,1720469439561,-500.0,0.0002004,2]
[331540070,1720469439571,-500.0,0.0002004,2]
[331540071,1720469439584,-500.0,0.0002004,2]
[331540073,1720469439593,-500.0,0.0002004,2]
[331540074,1720469439604,-500.0,0.0002004,2]
[331540076,1720469439615,-500.0,0.0002004,2]
[331540078,1720469439625,-500.0,0.0002004,2]
[331540079,1720469439635,-500.0,0.0002004,2]
[331540081,1720469439645,-500.0,0.0002004,2]
[331540083,1720469439654,-500.0,0.0002004,2]
[331540084,1720469439663,-500.0,0.0002004,2]
[331540085,1720469439673,-500.0,0.0002004,2]
[331540086,1720469439682,-500.0,0.0002004,2]
[331540087,1720469439693,-500.0,0.0002004,2]
[331540088,1720469439703,-500.0,0.0002004,2]
[331540089,1720469439712,-500.0,0.0002004,2]
[331540090,1720469439722,-500.0,0.0002004,2]
[331540091,1720469439732,-500.0,0.0002004,2]
[331540092,1720469439741,-500.0,0.0002004,2]
[331540093,1720469439751,-500.0,0.0002004,2]
[331540094,1720469439763,-500.0,0.0002004,2]
[331540095,1720469439773,-500.0,0.0002004,2]
[331540096,1720469439783,-500.0,0.0002004,2]
[331540097,1720469439792,-500.0,0.0002004,2]
[331540098,1720469439802,-500.0,0.0002004,2]
[331540099,1720469439811,-500.0,0.0002004,2]
[331540100,1720469439821,-500.0,0.0002004,2]
[331540101,1720469439831,-500.01,0.0002004,2]
[331540102,1720469439841,-500.0,0.0002004,2]
[331540103,1720469439850,-314.78,0.0002004,2]
[331540104,1720469439861,-500.0,0.0002004,2]
[331540105,1720469439871,-500.0,0.0002004,2]
[331540106,1720469439880,-500.0,0.0002004,2]
[331540107,1720469439890,-500.0,0.0002004,2]
[331540108,1720469439900,-500.0,0.0002004,2]
[331540109,1720469439910,-500.0,0.0002004,2]
[331540110,1720469439920,-500.0,0.0002004,2]
[331540111,1720469439937,-500.0,0.0002004,2]
[331540112,1720469439947,-500.0,0.0002004,2]
[331540113,1720469439958,-500.0,0.0002004,2]
[331540114,1720469439969,-500.0,0.0002004,2]
[331540115,1720469439979,-500.0,0.0002004,2]
[331540116,1720469439989,-500.0,0.0002004,2]
[331540117,1720469439999,-500.0,0.0002004,2]
[331540118,1720469440011,-500.0,0.0002004,2]
[331540119,1720469440021,-500.0,0.0002004,2]
[331540120,1720469440031,-500.0,0.0002004,2]
[331540121,1720469440041,-500.0,0.0002004,2]
[331540122,1720469440052,-500.0,0.0002004,2]
[331540123,1720469440063,-500.0,0.0002004,2]
[331540125,1720469440074,-500.0,0.0002004,2]
[331540127,1720469440083,-500.0,0.0002004,2]
[331540129,1720469440093,-500.0,0.0002004,2]
[331540131,1720469440104,-163.19,0.0002004,2]
[331540133,1720469440114,-500.0,0.0002004,2]
[331540135,1720469440125,-500.0,0.0002004,2]
[331540138,1720469440135,-500.0,0.0002004,2]